bitfinex/quotes_BTCUSD_20250831
["timestamp","ask_amount","ask_price","bid_price","bid_amount"]
[1756641285426,0.18424689,108550.0,108540.0,0.1553376]
[1756641285631,0.18424689,108550.0,108540.0,0.3111376]
[1756641286143,0.18424689,108550.0,108540.0,0.3121376]
[1756641288210,0.18424689,108550.0,108540.0,0.3122976]
[1756641290547,0.18528689,108550.0,108540.0,0.1622976]
[1756641290898,0.18424689,108550.0,108540.0,0.1622976]
[1756641291299,0.52424689,108550.0,108540.0,0.1622976]
[1756641292991,0.52528689,108550.0,108540.0,0.1622976]
[1756641296592,0.52528689,108550.0,108540.0,0.0063376]
[1756641296794,0.52528689,108550.0,108540.0,0.1599576]
[1756641297188,0.52528689,108550.0,108540.0,0.1620476]
[1756641297553,0.55193889,108550.0,108540.0,0.1620476]
[1756641301797,0.55193889,108550.0,108540.0,0.16435089]
[1756641302039,0.52424689,108550.0,108540.0,0.16435089]
[1756641304570,0.52424689,108550.0,108540.0,0.1620476]
[1756641304965,0.52424689,108550.0,108540.0,0.16435089]
[1756641313965,0.52424689,108550.0,108540.0,0.16415089]
[1756641316272,0.52528689,108550.0,108540.0,0.1618476]
[1756641317950,0.52424689,108550.0,108540.0,0.1618476]
[1756641326766,0.19342359,108570.0,108550.0,0.60518571]
[1756641326969,0.19342359,108570.0,108560.0,0.15993287]
[1756641327174,0.53342359,108570.0,108560.0,0.16318287]
[1756641327391,0.53446359,108570.0,108560.0,0.16318287]
[1756641327867,0.18422991,108560.0,108550.0,0.58800883]
[1756641328086,0.18526991,108560.0,108550.0,0.77344283]
[1756641329413,0.18626991,108560.0,108550.0,0.77344283]
[1756641330176,0.18522991,108560.0,108550.0,0.77344283]
[1756641330400,0.18522991,108560.0,108550.0,0.95768972]
[1756641331000,0.001,108560.0,108550.0,0.95768972]
[1756641332317,0.18522991,108560.0,108550.0,0.95760972]
[1756641334345,0.18522991,108560.0,108550.0,0.77368283]
[1756641336004,0.18522991,108560.0,108550.0,0.61776283]
[1756641336212,0.18522991,108560.0,108550.0,0.77368283]
[1756641338395,0.18522991,108560.0,108550.0,0.81530433]
[1756641339017,0.18522991,108560.0,108550.0,0.65938433]
[1756641339158,0.18626991,108560.0,108550.0,0.81518433]
[1756641339870,0.18522991,108560.0,108550.0,0.81518433]
[1756641342481,0.18626991,108560.0,108550.0,0.81518433]
[1756641342924,0.18522991,108560.0,108550.0,0.81518433]
[1756641343398,0.18522991,108560.0,108550.0,0.65938433]
[1756641343597,0.18626991,108560.0,108550.0,0.81506433]
[1756641343825,0.18626991,108560.0,108550.0,0.62648]
[1756641344033,0.18626991,108560.0,108550.0,0.42648]
[1756641346286,0.18626991,108560.0,108550.0,0.22648]
[1756641346699,0.18424689,108550.0,108540.0,0.1809846]
[1756641346952,0.18424689,108550.0,108540.0,0.3110476]
[1756641347974,0.18424689,108550.0,108540.0,0.3120476]
[1756641348186,0.18424689,108550.0,108540.0,0.35397592]
[1756641348386,0.18424689,108550.0,108540.0,0.35497592]
[1756641348720,0.18424689,108550.0,108540.0,0.38266392]
[1756641349163,0.18528689,108550.0,108540.0,0.3406556]
[1756641349374,0.18424689,108550.0,108540.0,0.3129676]
[1756641349567,0.18528689,108550.0,108540.0,0.1629676]
[1756641349722,0.18528689,108550.0,108540.0,0.1608976]
[1756641350138,0.18528689,108550.0,108540.0,0.1630476]
[1756641350338,0.18424689,108550.0,108540.0,0.1630476]
[1756641356009,0.18528689,108550.0,108540.0,0.1630476]
[1756641357574,0.18424689,108550.0,108540.0,0.1630476]
[1756641364200,0.18424689,108550.0,108540.0,0.1630076]
[1756641366957,0.18424689,108550.0,108540.0,0.1629676]
[1756641367638,0.18528689,108550.0,108540.0,0.1629676]
[1756641368044,0.18528689,108550.0,108540.0,0.2338076]
[1756641368292,0.18528689,108550.0,108540.0,0.0728876]
[1756641368523,0.18528689,108550.0,108540.0,0.2284076]
[1756641369655,0.18528689,108550.0,108540.0,0.2314976]
[1756641371613,0.18528689,108550.0,108540.0,0.2336476]
[1756641373578,0.18424689,108550.0,108540.0,0.2336476]
[1756641373781,0.18424689,108550.0,108540.0,0.0781276]
[1756641373985,0.18528689,108550.0,108540.0,0.2336476]
[1756641374216,0.18528689,108550.0,108540.0,0.0759776]
[1756641374397,0.18528689,108550.0,108540.0,0.2314976]
[1756641374545,0.52528689,108550.0,108540.0,0.2284076]
[1756641375558,0.52528689,108550.0,108540.0,0.22817779]
[1756641375799,0.52528689,108550.0,108540.0,0.23126779]
[1756641380788,0.52528689,108550.0,108540.0,0.22817779]
[1756641384878,0.52152373,108550.0,108540.0,0.00181779]
[1756641385097,0.52152373,108550.0,108540.0,0.15733779]
[1756641385310,0.54921573,108550.0,108540.0,0.15733779]
[1756641388598,0.54921573,108550.0,108540.0,0.16039779]
[1756641389543,0.52152373,108550.0,108540.0,0.16039779]
[1756641390155,0.52152373,108550.0,108540.0,0.15733779]
[1756641391337,0.54921673,108550.0,108540.0,0.15733779]
[1756641394866,0.54921673,108550.0,108540.0,0.16039779]
[1756641398521,0.54921673,108550.0,108540.0,0.15733779]
[1756641399181,0.54921673,108550.0,108540.0,0.16039779]
[1756641401014,0.54921673,108550.0,108540.0,0.15733779]
[1756641401193,0.54921673,108550.0,108540.0,0.16039779]
[1756641401400,0.54921673,108550.0,108540.0,0.16240779]
[1756641401875,0.54921673,108550.0,108540.0,0.16039779]
[1756641402177,0.54921673,108550.0,108540.0,0.00487779]
[1756641410619,0.54921673,108550.0,108540.0,0.00686779]
[1756641422691,0.54921673,108550.0,108540.0,0.00917108]
[1756641422893,0.54921673,108550.0,108540.0,0.08933185]
[1756641423101,0.54921673,108550.0,108540.0,0.08001108]
[1756641428850,0.52152373,108550.0,108540.0,0.08001108]
[1756641432063,0.52152373,108550.0,108540.0,0.07770779]
[1756641435035,0.52152373,108550.0,108540.0,0.23310779]
[1756641436929,0.52152373,108550.0,108540.0,0.23111779]
[1756641437307,0.52152373,108550.0,108540.0,0.23310779]
[1756641438735,0.52152373,108550.0,108540.0,0.07770779]
[1756641438954,0.52152373,108550.0,108540.0,0.23310779]
[1756641443646,0.52152373,108550.0,108540.0,0.07770779]
[1756641443875,0.30001202,108550.0,108540.0,0.23310779]
[1756641444130,0.18424689,108550.0,108540.0,0.07770779]
[1756641444312,0.18424689,108550.0,108540.0,0.22805779]
[1756641445097,0.18424689,108550.0,108540.0,0.23114779]
[1756641445280,0.18424689,108550.0,108540.0,0.23318779]
[1756641446601,0.18424689,108550.0,108540.0,0.07778779]
[1756641446801,0.18424689,108550.0,108540.0,0.23318779]
[1756641447446,0.18424689,108550.0,108540.0,0.07778779]
[1756641447584,0.18424689,108550.0,108540.0,0.16234779]
[1756641447790,0.18424689,108550.0,108540.0,0.00694779]
[1756641447992,0.18424689,108550.0,108540.0,0.16234779]
[1756641454452,0.18424689,108550.0,108540.0,0.61053048]
[1756641454671,0.18424689,108550.0,108540.0,0.42626662]
[1756641454873,0.16750283,108560.0,108540.0,0.63821748]
[1756641455076,0.16750283,108560.0,108550.0,0.00539308]
[1756641455284,0.16750283,108560.0,108550.0,0.00743308]
[1756641455459,0.16750283,108560.0,108550.0,0.03512008]
[1756641458389,0.19342359,108570.0,108550.0,0.58318698]
[1756641458602,0.19342359,108570.0,108560.0,0.15849]
[1756641459031,0.19342359,108570.0,108560.0,0.188214]
[1756641460652,0.19442359,108570.0,108560.0,0.188214]
[1756641460824,0.19342359,108570.0,108560.0,0.188214]
[1756641461226,0.19442359,108570.0,108560.0,0.188214]
[1756641461651,0.19442359,108570.0,108560.0,0.032814]
[1756641461859,0.19442359,108570.0,108560.0,0.188174]
[1756641462061,0.19442359,108570.0,108560.0,0.032814]
[1756641462271,0.19442359,108570.0,108560.0,0.188174]
[1756641467321,0.19442359,108570.0,108560.0,0.032814]
[1756641467515,0.19442359,108570.0,108560.0,0.183044]
[1756641467735,0.22210859,108570.0,108560.0,0.183044]
[1756641467955,0.22210859,108570.0,108560.0,0.15536]
[1756641468696,0.22210859,108570.0,108560.0,0.15845]
[1756641468913,0.22210859,108570.0,108560.0,0.16049]
[1756641469331,0.22210859,108570.0,108560.0,0.15845]
[1756641477187,0.18422991,108560.0,108550.0,0.19150501]
[1756641477384,0.18422991,108560.0,108550.0,0.34686501]
[1756641477713,0.18422991,108560.0,108550.0,0.259125]
[1756641477856,0.18422991,108560.0,108550.0,0.07608]
[1756641478071,0.18422991,108560.0,108550.0,0.2314]
[1756641478313,0.21191591,108560.0,108550.0,0.2314]
[1756641487753,0.18422991,108560.0,108550.0,0.2314]
[1756641489967,0.21191591,108560.0,108550.0,0.2314]
[1756641492833,0.18422991,108560.0,108550.0,0.2314]
[1756641495564,0.18422991,108560.0,108550.0,0.32438001]
[1756641495841,0.18422991,108560.0,108550.0,0.35206501]
[1756641506245,0.18422991,108560.0,108550.0,0.35202501]
[1756641515189,0.18422991,108560.0,108550.0,0.32434001]
[1756641539267,0.18422991,108560.0,108550.0,0.32296416]
[1756641545147,0.19342359,108570.0,108550.0,0.32296416]
[1756641545361,0.18422991,108560.0,108550.0,0.31988416]
[1756641545994,0.18422991,108560.0,108550.0,0.32310416]
[1756641554272,0.18422991,108560.0,108550.0,0.16782416]
[1756641554458,0.18422991,108560.0,108550.0,0.32298416]
[1756641556716,0.18422991,108560.0,108550.0,0.32294416]
[1756641558484,0.18422991,108560.0,108550.0,0.16566416]
[1756641558670,0.18422991,108560.0,108550.0,0.32078416]
[1756641558906,0.18422991,108560.0,108550.0,0.32278416]
[1756641559093,0.18422991,108560.0,108550.0,0.32078416]
[1756641560262,0.18422991,108560.0,108550.0,0.32273416]
[1756641566112,0.18422991,108560.0,108550.0,0.06946415]
[1756641566315,0.18422991,108560.0,108550.0,0.22458415]
[1756641567195,0.21191691,108560.0,108550.0,0.22458415]
[1756641569312,0.21191691,108560.0,108550.0,0.22454415]
[1756641570231,0.18422991,108560.0,108550.0,0.22454415]
[1756641572488,0.18422991,108560.0,108550.0,0.22954415]
[1756641572694,0.18422991,108560.0,108550.0,0.32252416]
[1756641573308,0.18422991,108560.0,108550.0,0.72770987]
[1756641573480,0.18422991,108560.0,108550.0,0.54346298]
[1756641574875,0.18422991,108560.0,108550.0,0.72770987]
[1756641575171,0.18422991,108560.0,108550.0,0.76819839]
[1756641575428,0.18422991,108560.0,108550.0,0.79588139]
[1756641578133,0.19342359,108570.0,108550.0,0.79588139]
[1756641578507,0.19342359,108570.0,108560.0,0.00535287]
[1756641578714,0.19342359,108570.0,108560.0,0.00730287]
[1756641579473,0.19442359,108570.0,108560.0,0.00730287]
[1756641579667,0.19342359,108570.0,108560.0,0.00730287]
[1756641580081,0.19442359,108570.0,108560.0,0.00730287]
[1756641582853,0.19442359,108570.0,108560.0,0.005]
[1756641583635,0.19442359,108570.0,108560.0,0.00730287]
[1756641583847,0.19442359,108570.0,108560.0,0.005]
[1756641585016,0.19442359,108570.0,108560.0,0.00730287]
[1756641585871,0.19442359,108570.0,108560.0,0.005]
[1756641593757,0.18422991,108560.0,108550.0,0.39012716]
[1756641593971,0.18422991,108560.0,108550.0,0.06946415]
[1756641594344,0.18422991,108560.0,108550.0,0.22442415]
[1756641594544,0.21191791,108560.0,108550.0,0.22442415]
[1756641600531,0.18424689,108550.0,108540.0,0.0032]
[1756641600711,0.18424689,108550.0,108540.0,0.15816]
[1756641601340,0.18426386,108540.0,108530.0,0.07084]
[1756641601544,0.18428084,108530.0,108520.0,0.1502]
[1756641601749,0.18428084,108530.0,108520.0,0.15516]
[1756641601958,0.18428084,108530.0,108520.0,0.15836]
[1756641602369,0.18428084,108530.0,108520.0,0.15516]
[1756641602572,0.21197684,108530.0,108520.0,0.15516]
[1756641603023,0.21197684,108530.0,108520.0,0.15836]
[1756641603920,0.21197684,108530.0,108520.0,0.16035]
[1756641604556,0.18428084,108530.0,108520.0,0.16035]
[1756641605404,0.18428084,108530.0,108520.0,0.16135]
[1756641615709,0.18428084,108530.0,108520.0,0.0012]
[1756641615966,0.18428084,108530.0,108520.0,0.15616]
[1756641616169,0.18428084,108530.0,108520.0,0.15936]
[1756641616744,0.21197784,108530.0,108520.0,0.15936]
[1756641616939,0.21197784,108530.0,108520.0,0.16135]
[1756641617140,0.21197784,108530.0,108520.0,0.00639]
[1756641617386,0.21197784,108530.0,108520.0,0.16135]
[1756641619643,0.21197784,108530.0,108520.0,0.0044]
[1756641619843,0.21197784,108530.0,108520.0,0.15616]
[1756641620259,0.21197784,108530.0,108520.0,0.15913]
[1756641620449,0.21197784,108530.0,108520.0,0.15616]
[1756641620656,0.21197784,108530.0,108520.0,0.15516]
[1756641621053,0.21197784,108530.0,108520.0,0.15813]
[1756641625802,0.21197784,108530.0,108520.0,0.16013]
[1756641633377,0.18428084,108530.0,108520.0,0.16243372]
[1756641636885,0.18428084,108530.0,108520.0,0.00517]
[1756641637149,0.18428084,108530.0,108520.0,0.16009]
[1756641637420,0.18428084,108530.0,108520.0,0.15512]
[1756641637677,0.18428084,108530.0,108520.0,0.15809]
[1756641638996,0.18428084,108530.0,108520.0,0.16009]
[1756641648736,0.18428084,108530.0,108520.0,0.16239372]
[1756641648876,0.18428084,108530.0,108520.0,0.16009]
[1756641654962,0.21198954,108550.0,108540.0,0.20520268]
[1756641655279,4.765e-05,108550.0,108540.0,0.45824269]
[1756641655698,0.001,108570.0,108550.0,0.18423227]
[1756641655895,0.001,108570.0,108560.0,0.88135161]
[1756641656098,0.001,108570.0,108560.0,0.87904874]
[1756641658275,0.19338895,108590.0,108570.0,0.20514223]
[1756641658486,0.19347687,108590.0,108580.0,0.15922244]
[1756641658688,0.19347687,108590.0,108580.0,0.16236244]
[1756641659979,0.19347687,108590.0,108580.0,0.16336244]
[1756641660187,0.19347687,108590.0,108580.0,0.00618]
[1756641660360,0.19347687,108590.0,108580.0,0.15584]
[1756641660570,0.19347687,108590.0,108580.0,0.15784]
[1756641660779,0.19347687,108590.0,108580.0,0.003]
[1756641660984,0.53347687,108590.0,108580.0,0.003]
[1756641661225,0.78129688,108590.0,108580.0,0.003]
[1756641661566,0.80898288,108590.0,108580.0,0.003]
[1756641662177,0.80898288,108590.0,108580.0,0.001]
[1756641662603,0.18421295,108570.0,108560.0,0.15484]
[1756641663024,0.18421295,108570.0,108560.0,0.15688]
[1756641663489,0.18421295,108570.0,108560.0,0.16002]
[1756641663930,0.18421295,108570.0,108560.0,0.16502]
[1756641667467,8.792e-05,108590.0,108570.0,0.58421295]
[1756641667669,8.792e-05,108590.0,108580.0,0.45809481]
[1756641667868,0.18426694,108590.0,108580.0,0.27389883]
[1756641668080,8.792e-05,108590.0,108580.0,0.45809481]
[1756641668419,0.18426694,108590.0,108580.0,0.45809481]
[1756641668621,0.18426694,108590.0,108580.0,0.27389883]
[1756641668826,0.18426694,108590.0,108580.0,0.45809481]
[1756641669480,0.18426694,108590.0,108580.0,0.45533775]
[1756641670091,0.18150426,108590.0,108580.0,0.45533775]
[1756641672958,0.18150426,108590.0,108580.0,0.09816001]
[1756641673165,0.18150426,108590.0,108580.0,0.1548]
[1756641673407,0.18419598,108580.0,108570.0,0.49491882]
[1756641673615,0.18419598,108580.0,108570.0,0.32380001]
[1756641674027,0.18419598,108580.0,108570.0,0.07602]
[1756641674199,0.18419598,108580.0,108570.0,0.23082]
[1756641674633,0.18150426,108590.0,108570.0,0.41503295]
[1756641674871,0.18150426,108590.0,108580.0,0.00314]
[1756641675048,0.18150426,108590.0,108580.0,0.00518]
[1756641677167,0.18150426,108590.0,108580.0,0.00314]
[1756641677366,0.18419598,108580.0,108570.0,0.22878]
[1756641677562,0.18419598,108580.0,108570.0,0.23082]
[1756641678086,0.18419598,108580.0,108570.0,0.07602]
[1756641678342,0.18419598,108580.0,108570.0,0.23078]
[1756641678896,0.18419598,108580.0,108570.0,0.23178]
[1756641680244,0.18419598,108580.0,108570.0,0.23378]
[1756641682787,0.18419598,108580.0,108570.0,0.23174]
[1756641683182,0.18419598,108580.0,108570.0,0.23373]
[1756641688592,0.18419598,108580.0,108570.0,0.003]
[1756641688798,0.67895598,108580.0,108570.0,0.003]
[1756641689059,0.70664098,108580.0,108570.0,0.003]
[1756641694373,0.79962099,108580.0,108570.0,0.003]
[1756641695450,0.77193599,108580.0,108570.0,0.003]
[1756641699581,0.78917197,108580.0,108570.0,0.003]
[1756641701377,0.77193599,108580.0,108570.0,0.003]
[1756641701579,0.78917437,108580.0,108570.0,0.003]
[1756641702090,0.82133863,108580.0,108570.0,0.003]
[1756641702528,0.78917437,108580.0,108570.0,0.003]
[1756641702974,0.78917437,108580.0,108570.0,0.002]
[1756641703406,0.18422762,108570.0,108550.0,0.00306]
[1756641703640,0.33898991,108560.0,108550.0,0.00306]
[1756641703846,0.18422991,108560.0,108550.0,0.00306]
[1756641704051,0.18422991,108560.0,108550.0,0.00505]
[1756641705489,0.18422991,108560.0,108550.0,0.00705]
[1756641706262,0.18422991,108560.0,108550.0,0.00805]
[1756641709782,0.18422991,108560.0,108550.0,0.00606]
[1756641711472,0.18422991,108560.0,108550.0,0.00816]
[1756641712293,0.52422991,108560.0,108550.0,0.00606]
[1756641714313,0.52422991,108560.0,108550.0,0.00406]
[1756641715125,0.52422991,108560.0,108550.0,0.00306]
[1756641715320,0.18426386,108540.0,108530.0,0.31865312]
[1756641715519,0.18426386,108540.0,108530.0,0.16599312]
[1756641715717,0.18426386,108540.0,108530.0,0.32071312]
[1756641715931,0.18426386,108540.0,108530.0,0.32369312]
[1756641716133,0.18426386,108540.0,108530.0,0.25157882]
[1756641716543,0.18426386,108540.0,108530.0,0.25205518]
[1756641716740,0.18426386,108540.0,108530.0,0.25405518]
[1756641717801,0.18426386,108540.0,108530.0,0.25705518]
[1756641720918,0.18426386,108540.0,108530.0,0.44133602]
[1756641721115,0.18426386,108540.0,108530.0,0.25705518]
[1756641721544,0.18426386,108540.0,108530.0,0.08139636]
[1756641721724,0.18426386,108540.0,108530.0,0.01055636]
[1756641734918,0.18426386,108540.0,108530.0,0.16527636]
[1756641737257,0.18426386,108540.0,108530.0,0.16389674]
[1756641738392,0.18426386,108540.0,108530.0,0.00547636]
[1756641738393,0.18592386,108540.0,108530.0,0.00547636]
[1756641739203,0.18592386,108540.0,108530.0,0.00845636]
[1756641740884,0.18592386,108540.0,108530.0,0.01043636]
[1756641743987,0.18592386,108540.0,108530.0,0.00845636]
[1756641744152,0.18592386,108540.0,108530.0,0.00547636]
[1756641745918,0.18592386,108540.0,108530.0,0.00842636]
[1756641750933,0.18592386,108540.0,108530.0,0.01040636]
[1756641751166,0.18592386,108540.0,108530.0,0.00547636]
[1756641751723,0.18592386,108540.0,108530.0,0.00842636]
[1756641752288,0.18592386,108540.0,108530.0,0.01040636]
[1756641752706,0.18426386,108540.0,108530.0,0.01040636]
[1756641755223,0.18592386,108540.0,108530.0,0.01040636]
[1756641756781,0.18592386,108540.0,108530.0,0.00842636]
[1756641757161,0.18592386,108540.0,108530.0,0.01040636]
[1756641759244,0.21361786,108540.0,108530.0,0.01040636]
[1756641760060,0.18592386,108540.0,108530.0,0.01040636]
[1756641762004,0.18592386,108540.0,108530.0,0.00547636]
[1756641762427,0.21361686,108540.0,108530.0,0.00547636]
[1756641763081,0.21361686,108540.0,108530.0,0.00842636]
[1756641763658,0.21361686,108540.0,108530.0,0.00547636]
[1756641764611,0.21361686,108540.0,108530.0,0.00842636]
[1756641764815,0.21361686,108540.0,108530.0,0.00547636]
[1756641770963,0.21361686,108540.0,108530.0,0.00865636]
[1756641771083,0.21361686,108540.0,108530.0,0.01070636]
[1756641774107,0.21361686,108540.0,108530.0,0.00547636]
[1756641774496,0.21464686,108540.0,108530.0,0.00547636]
[1756641774799,0.55464686,108540.0,108530.0,0.00547636]
[1756641775146,0.55464686,108540.0,108530.0,0.00047636]
[1756641777738,0.64762687,108540.0,108530.0,0.00047636]
[1756641781283,0.64762687,108540.0,108530.0,1e-08]
[1756641781714,5.66490478,108540.0,108530.0,1e-08]
[1756641782153,0.81891478,108540.0,108530.0,1e-08]
[1756641782317,0.80370687,108540.0,108530.0,1e-08]
[1756641782556,0.82097698,108540.0,108530.0,1e-08]
[1756641782685,5.9082733,108540.0,108530.0,1e-08]
[1756641783085,5.9112733,108540.0,108530.0,1e-08]
[1756641784309,5.7561933,108540.0,108530.0,1e-08]
[1756641784517,5.91146032,108540.0,108530.0,1e-08]
[1756641785148,5.75618032,108540.0,108530.0,1e-08]
[1756641785405,5.89420319,108540.0,108530.0,1e-08]
[1756641785588,5.73892319,108540.0,108530.0,1e-08]
[1756641785783,5.89428319,108540.0,108530.0,1e-08]
[1756641788190,5.89424319,108540.0,108530.0,1e-08]
[1756641791077,5.89420319,108540.0,108530.0,1e-08]
[1756641791639,5.73892319,108540.0,108530.0,1e-08]
[1756641791973,5.89420319,108540.0,108530.0,1e-08]
[1756641792550,5.93668767,108540.0,108530.0,1e-08]
[1756641793561,5.78140767,108540.0,108530.0,1e-08]
[1756641793731,5.93664767,108540.0,108530.0,1e-08]
[1756641795679,5.93561767,108540.0,108530.0,1e-08]
[1756641797199,5.95285774,108540.0,108530.0,1e-08]
[1756641800723,5.95277774,108540.0,108530.0,1e-08]
[1756641802979,5.91029326,108540.0,108530.0,1e-08]
[1756641803795,5.91029326,108540.0,108530.0,0.00323001]
[1756641804004,5.91029326,108540.0,108530.0,1e-08]
[1756641805998,5.89305319,108540.0,108530.0,1e-08]
[1756641806279,5.91032339,108540.0,108530.0,1e-08]
[1756641807051,5.82083176,108540.0,108530.0,1e-08]
[1756641808283,5.82731435,108540.0,108530.0,1e-08]
[1756641808916,5.82707435,108540.0,108530.0,1e-08]
[1756641816812,5.8098056,108540.0,108530.0,1e-08]
[1756641817037,5.8271089,108540.0,108530.0,1e-08]
[1756641817343,5.89862224,108540.0,108530.0,1e-08]
[1756641818492,5.89862224,108540.0,108530.0,0.00323001]
[1756641820485,5.67588185,108540.0,108530.0,0.00323001]
[1756641820712,5.79224637,108540.0,108530.0,0.00323001]
[1756641820909,5.79224637,108540.0,108530.0,0.00531001]
[1756641822344,5.79224637,108540.0,108530.0,0.00323001]
[1756641822949,5.79224637,108540.0,108530.0,0.00531001]
[1756641824090,5.79224381,108540.0,108530.0,0.00531001]
[1756641825860,5.88054013,108540.0,108530.0,1e-08]
[1756641827418,5.86324334,108540.0,108530.0,1e-08]
[1756641827657,5.8805391,108540.0,108530.0,1e-08]
[1756641828279,5.88053906,108540.0,108530.0,1e-08]
[1756641830364,5.93349971,108540.0,108530.0,1e-08]
[1756641830553,0.18428084,108530.0,108520.0,1e-08]
[1756641830682,5.60877309,108530.0,108520.0,1e-08]
[1756641830889,0.60877309,108530.0,108520.0,1e-08]
[1756641831086,0.61525658,108530.0,108520.0,1e-08]
[1756641831290,0.63647629,108530.0,108520.0,1e-08]
[1756641832481,0.97647629,108530.0,108520.0,1e-08]
[1756641833253,0.97847629,108530.0,108520.0,1e-08]
[1756641833653,0.18429782,108520.0,108510.0,0.0002]
[1756641833859,0.43227783,108520.0,108510.0,0.0002]
[1756641834088,0.43227783,108520.0,108510.0,0.00219]
[1756641834330,0.45998183,108520.0,108510.0,0.00219]
[1756641834894,0.46935421,108520.0,108510.0,0.00219]
[1756641835104,0.47035421,108520.0,108510.0,0.00219]
[1756641835493,0.47035421,108520.0,108510.0,0.00531]
[1756641835988,0.47247421,108520.0,108510.0,0.00531]
[1756641837302,0.56077053,108520.0,108510.0,0.00531]
[1756641838084,0.47035421,108520.0,108510.0,0.00531]
[1756641840705,0.5346702,108520.0,108510.0,0.00531]
[1756641841055,0.6895502,108520.0,108510.0,0.00531]
[1756641841382,0.1946702,108520.0,108510.0,0.00761393]
[1756641841607,0.5346702,108520.0,108510.0,0.00761393]
[1756641842348,0.52529782,108520.0,108510.0,0.00761393]
[1756641843625,0.53466439,108520.0,108510.0,0.00761393]
[1756641844195,0.68950439,108520.0,108510.0,0.00761393]
[1756641852242,0.68950439,108520.0,108510.0,0.00531]
[1756641852761,0.69148439,108520.0,108510.0,0.0002]
[1756641852895,0.68950439,108520.0,108510.0,0.00531]
[1756641854546,0.53466439,108520.0,108510.0,0.00531]
[1756641854747,0.68950439,108520.0,108510.0,0.00531]
[1756641860536,0.69148439,108520.0,108510.0,0.00531]
[1756641861135,0.69148439,108520.0,108510.0,0.0002]
[1756641862364,0.69048439,108520.0,108510.0,0.0002]
[1756641862779,0.1843148,108510.0,108500.0,2.49785354]
[1756641862978,0.3391548,108510.0,108500.0,2.34517354]
[1756641863448,0.1843148,108510.0,108500.0,2.34517354]
[1756641865299,0.1843148,108510.0,108500.0,2.34617354]
[1756641865707,0.1843148,108510.0,108500.0,2.34817354]
[1756641870188,0.1843148,108510.0,108500.0,2.50301354]
[1756641872267,0.1843148,108510.0,108500.0,2.34817354]
[1756641872499,0.1843148,108510.0,108500.0,2.50301354]
[1756641875089,0.19366439,108520.0,108500.0,3.00126416]
[1756641875292,0.53366439,108520.0,108510.0,0.00230393]
[1756641875572,0.53366439,108520.0,108510.0,0.00747393]
[1756641878831,0.19366439,108520.0,108510.0,0.00747393]
[1756641885172,0.19335915,108520.0,108510.0,0.00747393]
[1756641889969,0.34875379,108540.0,108520.0,0.18429782]
[1756641890121,0.68875379,108540.0,108530.0,0.00230351]
[1756641890321,0.53590379,108540.0,108530.0,0.00230351]
[1756641890525,0.69070379,108540.0,108530.0,0.00755351]
[1756641891162,0.69070379,108540.0,108530.0,0.16235351]
[1756641891371,0.69270379,108540.0,108530.0,0.16235351]
[1756641891803,0.69270379,108540.0,108530.0,0.00755351]
[1756641892863,0.70180342,108540.0,108530.0,0.00755351]
[1756641893085,0.54700342,108540.0,108530.0,0.18658435]
[1756641893284,0.54700342,108540.0,108530.0,0.18428084]
[1756641893977,0.54700342,108540.0,108530.0,0.1548]
[1756641894270,0.54700342,108540.0,108530.0,0.15710351]
[1756641894786,0.54700342,108540.0,108530.0,0.16235351]
[1756641897722,0.54700342,108540.0,108530.0,0.16026351]
[1756641899889,0.54700342,108540.0,108530.0,0.16235351]
[1756641900221,0.54505342,108540.0,108530.0,0.34663435]
[1756641900440,0.54505342,108540.0,108530.0,0.34433084]
[1756641901521,0.54505342,108540.0,108530.0,0.16005]
[1756641901705,0.54505342,108540.0,108530.0,0.16235351]
[1756641902028,0.54700342,108540.0,108530.0,0.16235351]
[1756641902726,0.54700342,108540.0,108530.0,0.00755351]
[1756641902866,0.54700342,108540.0,108530.0,0.16231351]
[1756641905093,0.54700342,108540.0,108530.0,0.00755351]
[1756641905268,0.54700342,108540.0,108530.0,0.16231351]
[1756641906486,0.54700342,108540.0,108530.0,0.00755351]
[1756641906701,0.54700342,108540.0,108530.0,0.16231351]
[1756641909564,0.54700342,108540.0,108530.0,0.16001]
[1756641909968,0.54700342,108540.0,108530.0,0.16231351]
[1756641911828,0.18428084,108530.0,108520.0,0.24604354]
[1756641912024,0.18428084,108530.0,108520.0,0.49694355]
[1756641912228,0.18428084,108530.0,108520.0,0.49903355]
[1756641912971,0.18428084,108530.0,108520.0,0.45822665]
[1756641913779,0.18528084,108530.0,108520.0,0.45822665]
[1756641921885,0.001,108530.0,108520.0,0.65822665]
[1756641923400,0.001,108530.0,108520.0,0.72906665]
[1756641925420,0.001,108530.0,108520.0,1.00563132]
[1756641925784,0.00012827,108530.0,108520.0,0.73813132]
[1756641926219,1.94e-05,108530.0,108520.0,1.00563132]
[1756641927104,1.94e-05,108530.0,108520.0,1.40663132]
[1756641927522,1.94e-05,108530.0,108520.0,1.40563132]
[1756641927738,1.94e-05,108530.0,108520.0,1.40763132]
[1756641928159,0.00047674,108540.0,108530.0,0.68428084]
[1756641928424,0.00047674,108540.0,108530.0,0.78043085]
[1756641928623,0.00047674,108540.0,108530.0,0.78259085]
[1756641929634,0.00047674,108540.0,108530.0,0.78359085]
[1756641932090,0.00047674,108540.0,108530.0,0.93827085]
[1756641932427,0.00245674,108540.0,108530.0,0.93827085]
[1756641932630,0.00047674,108540.0,108530.0,0.93827085]
[1756641933042,0.00047674,108540.0,108530.0,0.94027085]
[1756641934142,0.00047674,108540.0,108530.0,0.78559085]
[1756641934343,0.1867206,108540.0,108530.0,0.63026085]
[1756641934501,0.1892106,108540.0,108530.0,0.62159883]
[1756641935145,0.1892106,108540.0,108530.0,0.60066001]
[1756641935339,0.1892106,108540.0,108530.0,0.62159883]
[1756641936637,0.1867206,108540.0,108530.0,0.62159883]
[1756641939406,0.1867206,108540.0,108530.0,0.47159883]
[1756641939840,0.00047674,108540.0,108530.0,0.81120967]
[1756641940049,7.719e-05,108540.0,108530.0,0.81120967]
[1756641940405,7.719e-05,108540.0,108530.0,1.01120967]
[1756641943394,7.719e-05,108540.0,108530.0,1.27870967]
[1756641944443,7.719e-05,108540.0,108530.0,1.30639467]
[1756641948680,0.19327499,108570.0,108560.0,0.18422991]
[1756641948681,0.00854499,108570.0,108560.0,0.18422991]
[1756641948990,0.18876249,108570.0,108560.0,0.33886991]
[1756641949403,0.19788124,108570.0,108560.0,0.33886991]
[1756641950109,0.19739124,108570.0,108560.0,0.33886991]
[1756641952824,0.19988124,108570.0,108560.0,0.15464]
[1756641953067,0.18422991,108560.0,108550.0,0.706865]
[1756641953275,0.18621991,108560.0,108550.0,0.76704183]
[1756641953448,0.18869991,108560.0,108550.0,0.95128872]
[1756641953806,0.18621991,108560.0,108550.0,0.95128872]
[1756641954210,0.18621991,108560.0,108550.0,0.76704183]
[1756641954660,0.18621991,108560.0,108550.0,0.95128872]